Cogmind - Beta 13 @@@ ROGUE MODE // 2024.03.31 @ 21:43:08 Player: CONM Result: Destroyed by G-34 Mercenary with Small Laser Performance ------------- Evolutions (0) 0 Regions Visited (1) 200 Robots Destroyed (6) 30 Value Destroyed (35) 35 Prototype IDs (0) 0 Alien Tech Used (0) 0 Bonus (0) 0 TOTAL SCORE: 265 Bonus ------- None Cogmind --------- Core Integrity 0/250 Matter 300/300 Energy 100/100 System Corruption 0% Temperature Cool (6) Movement Core (1400) Ox27 Location -10/Materials Parts ------- > --- POWER (1) -------- (None) > --- PROPULSION (2) --- (None) > --- UTILITY (2) ------ Huge Storage Unit > --- WEAPON (2) ------- Hammer > --- INVENTORY (25) --- Light Ion Engine Wheel Compact Wheel Flight Unit Flight Unit Flight Unit High-capacity Matter Pod (0) EM Pulse Gun Peak State ------------ > --- POWER ------------ Ion Engine > --- PROPULSION ------- Light Treads Light Treads > --- UTILITY ---------- Small Storage Unit > --- WEAPON ----------- EM Pulse Gun Small Laser > --- INVENTORY -------- Wheel Compact Wheel [Rating: 6] Favorites ----------- Power Ion Engine Engine Ion Engine Propulsion Light Treads Treads Light Treads Utility Small Storage Unit Storage Small Storage Unit Weapon Small Laser Energy Gun Small Laser Special Weapon Mining Laser Impact Weapon Hammer Build | -11 -10 ------- Run | Yrd Mat Slots Evolved . | . . Power . | . . Propulsion . | . . Utility . | . . Weapon . | . . Parts Attached 10 | 7 3 Power 1 | 1 . Engine 1 | 1 . Core . | . . Reactor . | . . Propulsion 2 | 2 . Treads 2 | 2 . Leg . | . . Wheel . | . . Hover . | . . Flight . | . . Utility 2 | 1 1 Device . | . . Storage 2 | 1 1 Processor . | . . Hackware . | . . Protection . | . . Artifact . | . . Weapon 5 | 3 2 Energy Gun 2 | 2 . Energy Cannon . | . . Ballistic Gun . | . . Ballistic Cannon . | . . Launcher . | . . Special Weapon 2 | 1 1 Impact Weapon 1 | . 1 Slashing Weapon . | . . Piercing Weapon . | . . Special Melee Weapon . | . . Unidentified Prototypes . | . . Parts Lost 3 | . 3 Power 1 | . 1 Propulsion 1 | . 1 Utility . | . . Weapon 1 | . 1 Highest Loss Streak 2 | . 2 To Critical Strikes . | . . Average Slot Usage (%) 67 | . 67 Engine 13 | . 13 Treads 18 | . 18 Storage 14 | . 14 Energy Gun 4 | . 4 Special Weapon 6 | . 6 Impact Weapon 9 | . 9 Naked Turns . | . . Heaviest Build 87 | 13 87 Greatest Support 40 | 40 40 Greatest Overweight (x) 27 | 1 27 Average Overweight (x) . | . . Largest Inventory Capacity 25 | 8 25 Average Capacity 9 | 7 12 Most Carried 8 | 4 8 Average Carried 3 | 2 5 Final Capacity 25 | 8 25 Final Carried 8 | 4 8 Class Distribution -------------------- 100% | Mutant Dominant Class ---------------- Mutant | -10/Materials Resources | -11 -10 ----------- Run | Yrd Mat Matter Collected 285 | 270 15 Remotely . | . . Salvage Created 161 | 133 28 Parts 12 | 9 3 Haulers Intercepted . | . . Recyclers Shooed . | . . Parts Field Recycled . | . . Retrieved Matter . | . . Parts Self-Destructed . | . . Prevented . | . . Kills | -11 -10 ------- Run | Yrd Mat Combat Hostiles Destroyed 2 | . 2 Melee 1 | . 1 Classes Destroyed 4 | 3 1 Worker 2 | 2 . Tunneler 1 | 1 . Recycler 1 | 1 . Swarmer 2 | . 2 Best Kill Streak 3 | 3 2 Combat Bots Only 2 | . 2 Max Kills in Single Turn 1 | 1 1 Gunslinging . | . . Exploded . | . . Melee 1 | . 1 Uniques/NPCs Destroyed . | . . Combat | -11 -10 -------- Run | Yrd Mat Hostile Shots Fired 78 | . 78 Missed 22 | . 22 Damage Taken 564 | . 564 Core 256 | . 256 Absorbed by Shields . | . . Core Remaining (%) 100 | 100 . Volleys Fired 42 | 41 1 Largest 2 | 2 1 Hottest 140 | 140 100 Shots Fired 49 | 48 1 Gun 47 | 47 . Cannon . | . . Launcher . | . . Special 2 | 1 1 Kinetic . | . . Thermal 43 | 42 1 Explosive . | . . Electromagnetic 6 | 6 . Robot Hit Streak 2 | 2 . Robot Miss Streak 2 | 2 1 Penetration Max . | . . Secondary Targets . | . . Shots Hit Robots 8 | 5 3 Core Hits 6 | 5 1 Critical Kills . | . . Critical Parts Destroyed 1 | . 1 Critical Strikes 2 | 1 1 Corrupt 1 | 1 . Smash 1 | . 1 Melee Attacks 4 | . 4 Impact 4 | . 4 Slashing . | . . Piercing . | . . Sneak Attacks . | . . Combat Hostiles . | . . Follow-up Attacks . | . . Damage Inflicted 172 | 93 79 Guns 93 | 93 . Cannons . | . . Explosions . | . . Melee 79 | . 79 Ramming . | . . Kinetic . | . . Thermal 45 | 45 . Explosive . | . . Electromagnetic 48 | 48 . Impact 79 | . 79 Slashing . | . . Piercing . | . . Highest Corruption . | . . Average Corruption . | . . Corruption Purged . | . . Corruption Blocked . | . . Overload Shots . | . . Overflow Damage 27 | . 27 Projectiles . | . . Explosions . | . . Melee 27 | . 27 Knockbacks . | . . Impact . | . . Kinetic . | . . Secondary . | . . Self-Inflicted Damage . | . . Shots . | . . Rammed . | . . Targets Rammed . | . . Kicked . | . . Crushed . | . . Highest Temperature 40 | 40 20 Average Temperature 24 | 26 10 Received Heat Transfer 219 | . 219 Siege Activations . | . . Robots Corrupted . | . . Combat Hostiles . | . . Parts Fried 1 | . 1 Impact Corruptions 2 | . 2 Robots Melted . | . . Combat Hostiles . | . . Parts Melted . | . . Heat Transferred 100 | 100 . Parts Sabotaged . | . . Parts Stolen . | . . Parts Stripped . | . . Power Chain Reactions . | . . Alert | -11 -10 ------- Run | Yrd Mat Peak Influence 54 | 20 54 Initial 13 | . 13 Average 19 | 9 30 Maximum Alert Level . | . . Low Security (%) 100 | 100 100 Level 1 . | . . Level 2 . | . . Level 3 . | . . Level 4 . | . . Level 5 . | . . High Security . | . . Max Security . | . . Squads Dispatched 1 | . 1 Investigation . | . . Extermination . | . . Reinforcement 1 | . 1 Assault . | . . Garrison . | . . Intercept . | . . Searches Triggered . | . . Construction Impeded . | . . Haulers Reinforced . | . . Active Scanning Responses . | . . Cargo Convoy Interrupts . | . . Stealth | -11 -10 --------- Run | Yrd Mat Distress Signals 1 | . 1 Communications Jammed . | . . Distress Signals . | . . Times Spotted 6 | . 6 Peak Tracking Total 3 | . 3 Tactical Retreats . | . . Traps | -11 -10 ------- Run | Yrd Mat Traps Triggered 1 | . 1 Indirectly . | . . Trap Hack Attempts . | . . Triggered . | . . Disarmed . | . . Reprogrammed . | . . Reused . | . . Traps Extracted . | . . Installed . | . . Triggered . | . . Machines | -11 -10 ---------- Run | Yrd Mat Machines Disabled . | . . Max in Single Turn . | . . Machines Repaired . | . . Machines Dismantled . | . . Machines Sabotaged . | . . Overloaded Fab Kills . | . . Hacking | -11 -10 --------- Run | Yrd Mat Machines Accessed . | . . Terminals . | . . Fabricators . | . . Repair Stations . | . . Recycling Units . | . . Scanalyzers . | . . Garrison Access . | . . Total Hacks . | . . Successful . | . . Failed . | . . Catastrophic . | . . Database Lockouts . | . . Manual . | . . Terminals . | . . Fabricators . | . . Repair Stations . | . . Recycling Units . | . . Scanalyzers . | . . Garrison Access . | . . Terminal Hacks . | . . Fabricator Hacks . | . . Repair Station Hacks . | . . Recycling Unit Hacks . | . . Scanalyzer . | . . Garrison Access Hacks . | . . Unauthorized Hacks . | . . Terminals . | . . Fabricators . | . . Repair Stations . | . . Recycling Units . | . . Scanalyzers . | . . Garrison Access . | . . Data Cores Recovered . | . . Used . | . . Hacking Detections . | . . Full Trace Events . | . . Feedback Events . | . . Feedback Blocked . | . . Robot Schematics Acquired . | . . Robots Built . | . . Authchips . | . . Time . | . . Total Robot Build Rating . | . . Part Schematics Acquired . | . . Parts Built . | . . Authchips . | . . Time . | . . Total Part Build Rating . | . . Parts Repaired . | . . Time . | . . Parts Recycled . | . . Recycled Matter . | . . Retrieved Matter . | . . Retrieved Components . | . . Parts Scanalyzed . | . . Part Schematics Acquired . | . . Parts Damaged . | . . Bothacking | -11 -10 ------------ Run | Yrd Mat Used RIF Installer . | . . Robots Hacked . | . . Non-combat . | . . Combat . | . . Robot Hacks Applied . | . . Relay Couplers Released . | . . Fabnet Peak Effective % . | . . Robots Rewired . | . . Allies Hacked . | . . Hacks Repelled . | . . Allies | -11 -10 -------- Run | Yrd Mat Total Allies . | . . Largest Group . | . . Highest-Rated Group . | . . Highest-Rated Ally . | . . Total Orders . | . . Ally Attacks . | . . Total Damage . | . . Kills . | . . Allies Corrupted . | . . Allies Melted . | . . Intel | -11 -10 ------- Run | Yrd Mat Robot Analysis Total . | . . Derelict Logs Recovered . | . . Drone Launches . | . . Drone Recoveries . | . . Exploration | -11 -10 ------------- Run | Yrd Mat Turns Passed 463 | 251 212 Spaces Moved 190 | 94 96 Core 10 | 9 1 Treads 180 | 85 95 Legs . | . . Wheels . | . . Hover . | . . Flight . | . . Fastest Speed 50 | 50 160 Average Speed 176 | 152 199 Slowest Speed 1400 | 160 1400 Overloaded Moves . | . . Propulsion Burnouts . | . . Robots Hopped . | . . Cave-ins Triggered . | . . Exploration Rate (%) 12 | 6 19 Regions Visited 1 Branch Regions . Pre-discovered Areas . | . . Known Exits Taken . | . . Unknown Exits Taken 1 | 1 . Scrap Searched . | . . Spaces Dug . | . . Terrain Destroyed 1 | . 1 Melee . | . . Projectile 1 | . 1 AOE . | . . Terrain Rammed . | . . Walls Destroyed . | . . Machines Disabled . | . . Actions | -11 -10 --------- Run | Yrd Mat Total 264 | 151 113 Wait . | . . Move 189 | 93 96 Hop . | . . Pick Up 17 | 10 7 Fast Attach . | . . Attach 7 | 6 1 Detach . | . . Swap 3 | 1 2 Drop 2 | . 2 Fire 42 | 41 1 Melee 4 | . 4 Ram . | . . Kick . | . . Crush . | . . Escape Stasis . | . . Rewire . | . . Trap . | . . Miscellaneous . | . . Route ------- -11/Scrapyard -10/Materials History --------- Turn | Location | Event 10 | -11/Scrapyard | Discovered new exit (range 15) 252 | -11/Scrapyard | Entered Materials 310 | -10/Materials | Build established: Mutant 373 | -10/Materials | Met 8R-AWN 450 | -10/Materials | Core integrity fell below 50% 462 | -10/Materials | Core integrity fell below 20% 464 | -10/Materials | Destroyed by G-34 Mercenary with Small Laser Last Messages --------------- 8R-AWN: Wow you are some kind of weird tech. All alone out here little buddy? I'll take you somewhere safer. Try to keep up. And don't worry about patrols, I'll take care of them if they get in the way. HV Slug penetrates S-10 Pest. S-10 Pest suffers critical hit (Destroy). HV Slug penetrates Wall. HV Slug penetrates S-10 Pest. S-10 Pest destroyed. HV Slug penetrates Wall. Acquired Flight Unit. K-01 Serf collects debris. Acquired Huge Storage Unit. Dropped Sml. Storage Unit. Acquired Hcp. Matter Pod. R-06 Scavenger collects Sml. Storage Unit. M-13 Machinist repairs G-34 Mercenary. Lgt. Treads destroyed. Ion Engine destroyed. Map ----- +----------------------------------------------------+ | ?????????????????????????????????????????????????? | | ?????????????????????????????????????????????????? | | ?????????????????????????????????????????????????? | | ?????????????????????????????????????????????????? | | ????????????????????#????????????????????????????? | | ????????####??????? ?????????????????????????????? | | ????????? ####### ?????????????????????????????? | | ?????????? ???##?????????????????????????? | | ??????????? ???? ?????????????????????????? | | ???????????? #???? #?????????????????????????? | | ?????????????# #???? #?????????????????????????? | | ??????######## #####+######????????????????????? | | ??????# // / ### #????????????????????? | | ??????# /[ # / #????????????????????? | | ??????# / + =### ####?????????????????? | | ??????# ## ##?# """ # ??????????????????? | | ??????# ## #??#[""""" + ???????????????????? | | ????? # ## #??# """"" #????????????????????? | | ????? ######### #??#%""""" #????????????????????? | | ????#+????????# #??# %""" #????????????????????? | | ????# ????????# #??# #????????????????????? | | ????# ????????# #??#####+####????????????????????? | | ????# #?#######/###????# #???????????????????????? | | ???# #?# #????# #???????????????????????? | | #### ### ######+####????????????????????? | | # # @ #????????????????????? | | # """ """ # #????????????????????? | | + """ """ # ! g# #????????????????? | | """ # """ """ # k g/ +????????????????? | | """ # #! #r #????????????????? | | """ ## # m # %#????????????????? | | ############! t #?r #????????????????? | | #??????????# g ! #?? #????????????????? | | """ #??????????#####/#####???#????????????????? | | """ #??????????????# #????????????????????????? | | """ #??????????????# #????????????????????????? | | #??????????????# #????????????????????????? | | #??????????????# #????????????????????????? | | # #??????????????# ????????????????????????? | | # #??????????????###????????????????????????? | | # #?????????????????????????????????????????? | | # #?????????????????????????????????????????? | | # +?????????????????????????????????????????? | | #+## #?????????????????????????????????????????? | | ???# #?????????????????????????????????????????? | | ???# #?????????????????????????????????????????? | | ???# #?????????????????????????????????????????? | | ???+ #?????????????????????????????????????????? | | ???# #?????????????????????????????????????????? | | ???# #?????????????????????????????????????????? | +----------------------------------------------------+ Best States ------------- Heat Dissipation 25 Energy Generation 10 Energy Capacity 250 Matter Stores 300 Matter Capacity 300 Sight Range 16 Terrain Scan Density 10 Evasion (%) 40 Recoil Reduction 2 Item Schematics ----------------- None Robot Schematics ------------------ None Fabricated ------------ Nothing Alien Tech Used ----------------- None Achievements -------------- None Challenges ------------ None Game ------ Seed AntimatterDeuteriumBank Manual? 0 Play Time 00:09:12 Cumulative 2.4 hours Start 2024.03.31 @ 21:37:10 End 2024.03.31 @ 21:43:08 Sessions 1 Manual Loads 0 Difficulty Rogue Special Mode None Game No. 7 Rogue 7 Adventurer 0 Explorer 0 Win Type - Total 0 Types 0/0/0/0/0/0/0/0/0 Lore% 4 Gallery% 5 Achievement% 5 Wizard Run 0 Options --------- Layout 1 ASCII 0 Keyboard 0 Movement Mouse Keybinds 0 Fullscreen 1 Font 24/Smallcaps Map View 50x35 Zoom Use 0% Tactical HUD 0 Map Filters NONE Filters NONE Steam 1 RUN: 969cfc0e-8924-4f7a-80b3-e18a6a39b30f